fUST/lending_fUST_20250615
["ID","MTS","AMOUNT","RATE_DAILY","PERIOD"]
[365822481,1749939040172,-400.0,0.00022191,4]
[365822482,1749939040182,-460.0,0.00022191,4]
[365822483,1749939040191,-401.27786161,0.00022191,4]
[365822484,1749939040200,-400.0,0.00022191,4]
[365822485,1749939040210,-280.0,0.00022191,4]
[365822486,1749939040219,-460.0,0.00022191,4]
[365822487,1749939040228,-460.0,0.00022191,4]
[365822488,1749939040239,-460.0,0.00022191,4]
[365822489,1749939040248,-300.0,0.00022191,4]
[365822490,1749939040258,-460.0,0.00022191,4]
[365822491,1749939040267,-400.0,0.00022191,4]
[365822492,1749939040277,-460.0,0.00022191,4]
[365822493,1749939040287,-353.83210481,0.00022191,4]
[365822494,1749939040296,-460.0,0.00022191,4]
[365822495,1749939040305,-460.0,0.00022191,4]
[365822497,1749939040316,-426.56994649,0.00022191,4]
[365822498,1749939040326,-460.0,0.00022191,4]
[365822499,1749939040335,-400.0,0.00022191,4]
[365822500,1749939040345,-370.0,0.00022191,4]
[365822501,1749939040355,-370.0,0.00022191,4]
[365822502,1749939040366,-400.0,0.00022191,4]
[365822503,1749939040376,-350.0,0.00022191,4]
[365822504,1749939040386,-391.97196986,0.00022191,4]
[365822505,1749939040395,-460.0,0.00022191,4]
[365822506,1749939040404,-400.0,0.00022191,4]
[365822507,1749939040414,-460.0,0.00022191,4]
[365822508,1749939040424,-400.0,0.00022191,4]
[365822510,1749939040433,-295.7936195,0.00022191,4]
[365822511,1749939040442,-360.0,0.00022191,4]
[365822512,1749939040452,-460.0,0.00022191,4]
[365822513,1749939040461,-1596.72,0.00022191,4]
[365822514,1749939040470,-460.0,0.00022191,4]
[365822515,1749939040479,-460.0,0.00022191,4]
[365822517,1749939040488,-460.0,0.00022191,4]
[365822518,1749939040497,-460.0,0.00022191,4]
[365822519,1749939040506,-578.05,0.00022191,4]
[365822520,1749939040515,-460.0,0.00022191,4]
[365822521,1749939040524,-500.0,0.00022191,4]
[365822522,1749939040533,-3609.07,0.00022191,4]
[365822523,1749939040543,-460.0,0.00022191,4]
[365822525,1749939040552,-460.0,0.00022191,4]
[365822527,1749939040562,-460.0,0.00022191,4]
[365822529,1749939040571,-464.19,0.00022191,4]
[365822531,1749939040581,-460.0,0.00022191,4]
[365822532,1749939040591,-543.7,0.00022191,4]
[365822533,1749939040600,-460.0,0.00022191,4]
[365822534,1749939040609,-400.0,0.00022191,4]
[365822535,1749939040618,-460.0,0.00022191,4]
[365822536,1749939040627,-462.24,0.00022191,4]
[365822537,1749939040637,-280.09621385,0.00022191,4]
[365822538,1749939040647,-460.0,0.00022191,4]
[365822539,1749939040656,-1251.1,0.00022191,4]
[365822541,1749939040666,-460.0,0.00022191,4]
[365822543,1749939040675,-460.0,0.00022191,4]
[365822545,1749939040684,-460.0,0.00022191,4]
[365822547,1749939040695,-460.0,0.00022191,4]
[365822549,1749939040704,-960.25,0.00022191,4]
[365822551,1749939040715,-460.0,0.00022191,4]
[365822553,1749939040724,-460.0,0.00022191,4]
[365822555,1749939040734,-400.0,0.00022191,4]
[365822557,1749939040746,-460.0,0.00022191,4]
[365822559,1749939040756,-460.0,0.00022191,4]
[365822561,1749939040765,-460.0,0.00022191,4]
[365822563,1749939040775,-424.28102986,0.00022191,4]
[365822565,1749939040784,-400.0,0.00022191,4]
[365822567,1749939040794,-400.0,0.00022191,4]
[365822569,1749939040804,-460.0,0.00022191,4]
[365822571,1749939040813,-460.0,0.00022191,4]
[365822573,1749939040822,-460.0,0.00022191,4]
[365822575,1749939040832,-460.0,0.00022191,4]
[365822577,1749939040842,-534.52577775,0.00022191,4]
[365822579,1749939040853,-400.0,0.00022191,4]
[365822581,1749939040862,-544.09,0.00022191,4]
[365822583,1749939040872,-460.0,0.00022191,4]
[365822585,1749939040881,-460.0,0.00022191,4]
[365822587,1749939040891,-820.18,0.00022191,4]
[365822588,1749939040900,-1251.04,0.00022191,4]
[365822590,1749939040909,-460.0,0.00022191,4]
[365822592,1749939040918,-1083.91,0.00022191,4]
[365822594,1749939040928,-460.0,0.00022191,4]
[365822596,1749939040937,-460.0,0.00022191,4]
[365822598,1749939040947,-460.8,0.00022191,4]
[365822600,1749939040957,-632.58,0.00022191,4]
[365822602,1749939040967,-970.04,0.00022191,4]
[365822604,1749939040977,-429.93233988,0.00022191,4]
[365822606,1749939040987,-400.0,0.00022191,4]
[365822608,1749939040997,-460.0,0.00022191,4]
[365822610,1749939041007,-402.12261426,0.00022191,4]
[365822612,1749939041026,-619.1,0.00022191,4]
[365822614,1749939041040,-649.91,0.00022191,4]
[365822616,1749939041049,-400.0,0.00022191,4]
[365822618,1749939041058,-3762.74,0.00022191,4]
[365822620,1749939041068,-460.0,0.00022191,4]
[365822622,1749939041079,-460.0,0.00022191,4]
[365822624,1749939041089,-633.71,0.00022191,4]
[365822626,1749939041099,-497.90146351,0.00022191,4]
[365822628,1749939041109,-3111.58,0.00022191,4]
[365822630,1749939041119,-460.0,0.00022191,4]
[365822632,1749939041128,-1029.64,0.00022191,4]
[365822634,1749939041137,-430.0,0.00022191,4]
[365822636,1749939041146,-400.0,0.00022191,4]
[365822638,1749939041155,-3961.74,0.00022191,4]
[365822640,1749939041165,-460.0,0.00022191,4]
[365822642,1749939041174,-360.0,0.00022191,4]
[365822644,1749939041183,-400.0,0.00022191,4]
[365822649,1749939041223,-1087.41,0.00022191,4]
[365822651,1749939041233,-4248.13,0.00022191,4]
[365822653,1749939041242,-460.0,0.00022191,4]
[365822655,1749939041251,-460.0,0.00022191,4]
[365822657,1749939041259,-460.0,0.00022191,2]
[365822659,1749939041268,-1603.67,0.00022191,4]
[365822660,1749939041278,-460.0,0.00022191,4]
[365822662,1749939041287,-460.0,0.00022191,4]
[365822663,1749939041296,-460.0,0.00022191,4]
[365822664,1749939041306,-4769.05,0.00022191,4]
[365822665,1749939041315,-460.0,0.00022191,4]
[365822666,1749939041324,-966.3,0.00022191,4]
[365822667,1749939041334,-460.0,0.00022191,4]
[365822668,1749939041343,-460.0,0.00022191,4]
[365822669,1749939041353,-400.0,0.00022191,4]
[365822670,1749939041362,-460.0,0.00022191,4]
[365822671,1749939041371,-460.0,0.00022191,4]
[365822672,1749939041381,-460.0,0.00022191,4]
[365822673,1749939041390,-460.0,0.00022191,4]
[365822674,1749939041400,-420.0,0.00022191,4]
[365822675,1749939041409,-460.0,0.00022191,4]
[365822676,1749939041418,-460.0,0.00022191,4]
[365822677,1749939041427,-460.0,0.00022191,4]
[365822678,1749939041437,-460.0,0.00022191,4]
[365822679,1749939041446,-460.0,0.00022191,4]
[365822680,1749939041455,-3929.14,0.00022191,4]
[365822681,1749939041464,-390.0,0.00022191,4]
[365822682,1749939041473,-770.14,0.00022191,4]
[365822683,1749939041483,-460.0,0.00022191,4]
[365822684,1749939041492,-470.98072077,0.00022191,4]
[365822685,1749939041501,-460.0,0.00022191,4]
[365822686,1749939041510,-2922.73,0.00022191,4]
[365822687,1749939041520,-628.09,0.00022191,4]
[365822688,1749939041529,-460.0,0.00022191,4]
[365822689,1749939041538,-460.0,0.00022191,4]
[365822690,1749939041547,-390.0,0.00022191,4]
[365822691,1749939041555,-460.0,0.00022191,4]
[365822692,1749939041565,-400.0,0.00022191,4]
[365822693,1749939041574,-1326.08,0.00022191,4]
[365822694,1749939041583,-460.0,0.00022191,4]
[365822695,1749939041592,-3126.37,0.00022191,4]
[365822696,1749939041601,-651.15,0.00022191,4]
[365822697,1749939041611,-460.0,0.00022191,4]
[365822698,1749939041620,-460.0,0.00022191,4]
[365822699,1749939041630,-460.0,0.00022191,4]
[365822700,1749939041640,-460.0,0.00022191,4]
[365822701,1749939041649,-1826.92,0.00022191,4]
[365822702,1749939041659,-460.0,0.00022191,4]
[365822703,1749939041667,-212.01185887,0.00022191,4]
[365822704,1749939041677,-1748.36,0.00022191,4]
[365822705,1749939041686,-683.27,0.00022191,4]
[365822706,1749939041695,-460.0,0.00022191,4]
[365822707,1749939041704,-420.0,0.00022191,4]
[365822708,1749939041713,-1454.28,0.00022191,4]
[365822709,1749939041723,-460.0,0.00022191,4]
[365822710,1749939041732,-460.0,0.00022191,4]
[365822711,1749939041741,-400.0,0.00022191,4]
[365822712,1749939041751,-1439.56,0.00022191,4]
[365822713,1749939041761,-1077.20279651,0.0002221,6]
[365822714,1749939041771,-289.42320114,0.00022228,2]
[365822715,1749939041780,-500.0,0.0002225,2]
[365822716,1749939041791,-1077.20279651,0.00022314,7]
[365822717,1749939041801,-1077.20279651,0.00022417,7]
[365822718,1749939041811,-380.0,0.00022465,4]
[365822719,1749939041820,-460.0,0.00022465,4]
[365822720,1749939041830,-270.62223925,0.00022465,4]
[365822721,1749939041839,-460.0,0.00022465,4]
[365822722,1749939041848,-460.0,0.00022465,4]
[365822723,1749939041858,-460.0,0.00022465,4]
[365822724,1749939041867,-420.26161383,0.00022465,4]
[365822725,1749939041877,-430.0,0.00022465,4]
[365822726,1749939041886,-370.0,0.00022465,4]
[365822727,1749939041898,-460.0,0.00022465,4]
[365822728,1749939041907,-460.0,0.00022465,4]
[365822729,1749939041917,-460.0,0.00022465,4]
[365822730,1749939041927,-302.60085674,0.00022465,4]
[365822731,1749939041937,-694.44,0.00022465,4]
[365822732,1749939041947,-460.0,0.00022465,4]
[365822733,1749939041957,-460.0,0.00022465,4]
[365822734,1749939041968,-400.0,0.00022465,4]
[365822735,1749939041978,-342.74270453,0.00022465,2]
[365822736,1749939041989,-340.0,0.00022465,4]
[365822737,1749939041999,-460.0,0.00022465,4]
[365822738,1749939042010,-460.0,0.00022465,4]
[365822739,1749939042020,-340.0,0.00022465,4]
[365822740,1749939042029,-326.35059097,0.00022465,4]
[365822741,1749939042039,-321.74044434,0.00022465,4]
[365822742,1749939042049,-460.0,0.00022465,4]
[365822743,1749939042059,-460.0,0.00022465,4]
[365822744,1749939042069,-340.0,0.00022465,4]
[365822745,1749939042084,-460.0,0.00022465,4]
[365822746,1749939042094,-460.0,0.00022465,4]
[365822747,1749939042104,-360.0,0.00022465,4]
[365822748,1749939042114,-390.0,0.00022465,4]
[365822749,1749939042124,-340.0,0.00022465,4]
[365822750,1749939042134,-340.0,0.00022465,4]
[365822751,1749939042146,-182.12880264,0.00022465,4]
[365822752,1749939042157,-460.0,0.00022465,4]
[365822753,1749939042167,-460.0,0.00022465,4]
[365822754,1749939042176,-460.0,0.00022465,4]
[365822755,1749939042186,-558.16,0.00022465,4]
[365822756,1749939042195,-340.0,0.00022465,4]
[365822757,1749939042205,-460.0,0.00022465,4]
[365822758,1749939042215,-460.0,0.00022465,4]
[365822759,1749939042225,-400.0,0.00022465,4]
[365822760,1749939042235,-460.0,0.00022465,4]
[365822761,1749939042245,-460.0,0.00022465,4]
[365822762,1749939042255,-275.81428976,0.00022465,4]
[365822763,1749939042264,-410.34076166,0.00022465,4]
[365822764,1749939042274,-460.0,0.00022465,4]
[365822765,1749939042284,-1461.13,0.00022465,4]
[365822766,1749939042294,-460.0,0.00022465,4]
[365822767,1749939042303,-460.0,0.00022465,4]
[365822768,1749939042314,-460.0,0.00022465,4]
[365822769,1749939042325,-460.0,0.00022465,4]
[365822770,1749939042334,-400.0,0.00022465,4]
[365822771,1749939042344,-334.60090645,0.00022465,4]
[365822772,1749939042354,-460.0,0.00022465,4]
[365822773,1749939042364,-460.0,0.00022465,4]
[365822774,1749939042374,-655.98,0.00022465,4]
[365822775,1749939042383,-460.0,0.00022465,4]
[365822776,1749939042396,-291.09908079,0.00022465,4]
[365822777,1749939042406,-330.0,0.00022465,4]
[365822778,1749939042416,-460.0,0.00022465,4]
[365822779,1749939042426,-460.0,0.00022465,4]
[365822780,1749939042435,-460.0,0.00022465,4]
[365822781,1749939042445,-460.0,0.00022465,4]
[365822782,1749939042455,-460.0,0.00022465,4]
[365822783,1749939042464,-340.0,0.00022465,4]
[365822784,1749939042475,-321.35883628,0.00022465,4]
[365822785,1749939042486,-460.0,0.00022465,4]
[365822786,1749939042496,-311.78223606,0.00022465,4]
[365822787,1749939042506,-329.43214443,0.00022465,4]
[365822788,1749939042516,-363.52,0.00022465,4]
[365822789,1749939042526,-460.0,0.00022465,4]
[365822790,1749939042536,-479.66720677,0.00022465,4]
[365822791,1749939042547,-460.0,0.00022465,4]
[365822792,1749939042557,-169.18929194,0.00022465,4]
[365822793,1749939042566,-460.0,0.00022465,4]
[365822794,1749939042576,-460.0,0.00022465,4]
[365822795,1749939042587,-1596.72,0.00022465,4]
[365822796,1749939042596,-460.0,0.00022465,4]
[365822797,1749939042607,-460.0,0.00022465,4]
[365822798,1749939042618,-400.0,0.00022465,4]
[365822799,1749939042629,-330.0,0.00022465,4]
[365822800,1749939042639,-578.05,0.00022465,4]
[365822801,1749939042649,-330.0,0.00022465,4]
[365822802,1749939042659,-3609.07,0.00022465,4]
[365822803,1749939042668,-460.0,0.00022465,4]
[365822804,1749939042678,-200.58584117,0.00022465,4]
[365822805,1749939042688,-460.0,0.00022465,4]
[365822806,1749939042698,-464.19,0.00022465,4]
[365822807,1749939042707,-460.0,0.00022465,4]
[365822808,1749939042717,-543.7,0.00022465,4]
[365822809,1749939042727,-460.0,0.00022465,4]
[365822810,1749939042736,-370.0,0.00022465,4]
[365822811,1749939042746,-462.24,0.00022465,4]
[365822812,1749939042755,-430.0,0.00022465,4]
[365822813,1749939042765,-1251.1,0.00022465,4]
[365822814,1749939042775,-460.0,0.00022465,4]
[365822815,1749939042785,-460.0,0.00022465,4]
[365822816,1749939042794,-330.0,0.00022465,4]
[365822817,1749939042804,-460.0,0.00022465,4]
[365822818,1749939042814,-960.25,0.00022465,4]
[365822819,1749939042824,-460.0,0.00022465,4]
[365822820,1749939042834,-460.0,0.00022465,4]
[365822821,1749939042843,-460.0,0.00022465,4]
[365822822,1749939042853,-460.0,0.00022465,4]
[365822823,1749939042863,-460.0,0.00022465,4]
[365822824,1749939042872,-360.0,0.00022465,4]
[365822825,1749939042882,-460.0,0.00022465,4]
[365822826,1749939042893,-544.09,0.00022465,4]
[365822827,1749939042903,-460.0,0.00022465,4]
[365822828,1749939042913,-460.0,0.00022465,4]
[365822829,1749939042922,-820.18,0.00022465,4]
[365822831,1749939042932,-1251.04,0.00022465,4]
[365822832,1749939042942,-460.0,0.00022465,4]
[365822833,1749939042951,-1083.91,0.00022465,4]
[365822834,1749939042961,-460.0,0.00022465,4]
[365822835,1749939042971,-410.0,0.00022465,4]
[365822836,1749939042981,-632.58,0.00022465,4]
[365822838,1749939042992,-970.04,0.00022465,4]
[365822840,1749939043002,-460.0,0.00022465,4]
[365822842,1749939043012,-619.1,0.00022465,4]
[365822844,1749939043022,-649.91,0.00022465,4]
[365822846,1749939043032,-3762.74,0.00022465,4]
[365822848,1749939043043,-460.0,0.00022465,4]
[365822850,1749939043054,-247.33375047,0.00022465,4]
[365822852,1749939043063,-633.71,0.00022465,4]
[365822854,1749939043074,-3111.58,0.00022465,4]
[365822856,1749939043087,-460.0,0.00022465,4]
[365822858,1749939043097,-1029.64,0.00022465,4]
[365822859,1749939043107,-3961.74,0.00022465,4]
[365822860,1749939043117,-460.0,0.00022465,4]
[365822861,1749939043127,-1087.41,0.00022465,4]
[365822862,1749939043137,-4248.13,0.00022465,4]
[365822863,1749939043147,-460.0,0.00022465,4]
[365822864,1749939043158,-460.0,0.00022465,4]
[365822865,1749939043168,-460.0,0.00022465,2]
[365822866,1749939043178,-1603.67,0.00022465,4]
[365822867,1749939043187,-430.0,0.00022465,4]
[365822868,1749939043197,-460.0,0.00022465,4]
[365822869,1749939043207,-4769.05,0.00022465,4]
[365822870,1749939043216,-360.0,0.00022465,4]
[365822871,1749939043225,-460.0,0.00022465,4]
[365822872,1749939043235,-966.3,0.00022465,4]
[365822873,1749939043244,-460.0,0.00022465,4]
[365822874,1749939043254,-460.0,0.00022465,4]
[365822875,1749939043264,-460.0,0.00022465,4]
[365822877,1749939043273,-575.63563806,0.00022465,4]
[365822878,1749939043282,-460.0,0.00022465,4]
[365822879,1749939043292,-460.0,0.00022465,4]
[365822880,1749939043301,-460.0,0.00022465,4]
[365822881,1749939043311,-460.0,0.00022465,4]
[365822882,1749939043320,-460.0,0.00022465,4]
[365822883,1749939043330,-460.0,0.00022465,4]
[365822885,1749939043339,-460.0,0.00022465,4]
[365822886,1749939043349,-3929.14,0.00022465,4]
[365822887,1749939043359,-770.14,0.00022465,4]
[365822888,1749939043370,-460.0,0.00022465,4]
[365822889,1749939043380,-330.0,0.00022465,4]
[365822890,1749939043390,-2922.73,0.00022465,4]
[365822892,1749939043400,-628.09,0.00022465,4]
[365822894,1749939043409,-340.0,0.00022465,4]
[365822896,1749939043419,-460.0,0.00022465,4]
[365822898,1749939043428,-460.0,0.00022465,4]
[365822900,1749939043439,-1326.08,0.00022465,4]
[365822902,1749939043449,-370.0,0.00022465,4]
[365822904,1749939043459,-3126.37,0.00022465,4]
[365822905,1749939043469,-651.15,0.00022465,4]
[365822906,1749939043478,-400.0,0.00022465,4]
[365822907,1749939043488,-460.0,0.00022465,4]
[365822908,1749939043498,-460.0,0.00022465,4]
[365822909,1749939043508,-460.0,0.00022465,4]
[365822910,1749939043518,-1826.92,0.00022465,4]
[365822911,1749939043528,-460.0,0.00022465,4]
[365822912,1749939043538,-1748.36,0.00022465,4]
[365822913,1749939043550,-683.27,0.00022465,4]
[365822914,1749939043559,-460.0,0.00022465,4]
[365822915,1749939043569,-1454.28,0.00022465,4]
[365822916,1749939043579,-460.0,0.00022465,4]
[365822917,1749939043591,-340.0,0.00022465,4]
[365822918,1749939043601,-1439.56,0.00022465,4]
[365822919,1749939043611,-398.75561234,0.00022466,2]
[365822920,1749939043621,-500.0,0.00022473,2]
[365822921,1749939043631,-500.0,0.00022473,2]
[365822922,1749939043641,-500.0,0.00022473,2]
[365822923,1749939043651,-500.0,0.00022473,2]
[365822924,1749939043660,-500.0,0.00022473,2]
[365822927,1749939043670,-500.0,0.00022473,2]
[365822929,1749939043679,-500.0,0.00022473,2]
[365822931,1749939043689,-500.0,0.00022473,2]
[365822932,1749939043699,-500.0,0.00022473,2]
[365822933,1749939043709,-444.37865843,0.00022521,2]
[365822934,1749939043718,-1077.20279651,0.00022521,7]
[365822935,1749939043728,-159.41069738,0.00022548,2]
[365822936,1749939043738,-500.0,0.00022575,4]
[365822937,1749939043747,-232.97706971,0.00022575,4]
[365822938,1749939043757,-151.0,0.00022575,4]
[365822939,1749939043767,-151.0,0.00022575,4]
[365822940,1749939043776,-151.0,0.00022575,4]
[365822941,1749939043786,-151.0,0.00022575,4]
[365822942,1749939043795,-500.0,0.00022575,4]
[365822943,1749939043805,-151.0,0.00022575,4]
[365822944,1749939043815,-500.0,0.00022602,4]
[365822945,1749939043824,-151.0,0.00022602,4]
[365822946,1749939043834,-229.96569739,0.00022602,4]
[365822947,1749939043844,-151.0,0.00022602,4]
[365822948,1749939043854,-151.0,0.00022602,4]
[365822949,1749939043864,-500.0,0.00022602,4]
[365822950,1749939043876,-151.0,0.00022602,4]
[365822951,1749939043886,-1077.20279651,0.00022624,7]
[365822952,1749939043896,-500.0,0.0002263,4]
[365822953,1749939043906,-151.0,0.0002263,4]
[365822954,1749939043916,-151.0,0.0002263,4]
[365822955,1749939043926,-235.31774589,0.0002263,4]
[365822956,1749939043936,-500.0,0.0002263,4]
[365822957,1749939043945,-151.0,0.0002263,4]
[365822958,1749939043955,-160.0,0.00022635,2]
[365822959,1749939043964,-835.41710878,0.00022635,2]
[365822960,1749939043975,-229.82479369,0.00022635,2]
[365822961,1749939043984,-845.10789306,0.00022635,2]
[365822962,1749939043995,-213.28201367,0.00022635,2]
[365822963,1749939044004,-424.40141186,0.00022635,2]
[365822964,1749939044015,-289.42320114,0.00022639,2]
[365822965,1749939044025,-500.0,0.00022657,4]
[365822966,1749939044034,-151.0,0.00022657,4]
[365822967,1749939044046,-500.0,0.00022657,4]
[365822968,1749939044055,-151.0,0.00022657,4]
[365822969,1749939044065,-500.0,0.00022685,4]
[365822970,1749939044076,-198.0,0.00022685,4]
[365822971,1749939044088,-370.70319592,0.00022685,4]
[365822972,1749939044097,-151.0,0.00022685,4]
[365822973,1749939044107,-500.0,0.00022712,4]
[365822974,1749939044117,-245.0,0.00022712,4]
[365822975,1749939044126,-1000.0,0.00022721,2]
[365822976,1749939044134,-1680.0,0.00022723,2]
[365822977,1749939044145,-1077.20279651,0.00022728,7]
[365822978,1749939044156,-5000.0,0.00022732,2]
[365822979,1749939044165,-282.42197335,0.00022732,2]
[365822980,1749939044175,-500.0,0.00022732,2]
[365822981,1749939044183,-500.0,0.00022732,2]
[365822982,1749939044194,-500.0,0.00022732,2]
[365822983,1749939044313,-500.0,0.00022732,2]
[365822984,1749939044323,-500.0,0.00022732,2]
[365822985,1749939044333,-500.0,0.00022732,2]
[365822986,1749939044343,-500.0,0.00022732,2]
[365822987,1749939044353,-500.0,0.00022732,2]
[365822988,1749939044363,-500.0,0.00022732,2]
[365822989,1749939044372,-500.0,0.00022732,2]
[365822990,1749939044380,-247.04809669,0.00022732,2]
[365822991,1749939044389,-207.4,0.00022732,2]
[365822992,1749939044399,-420.0,0.00022737,2]
[365822993,1749939044408,-460.0,0.00022739,4]
[365822994,1749939044417,-460.0,0.00022739,4]
[365822995,1749939044427,-591.02360114,0.00022739,4]
[365822996,1749939044436,-340.0,0.00022739,4]
[365822997,1749939044445,-380.0,0.00022739,4]
[365822998,1749939044455,-460.0,0.00022739,4]
[365822999,1749939044464,-250.0,0.00022739,4]
[365823000,1749939044473,-694.44,0.00022739,4]
[365823001,1749939044482,-460.0,0.00022739,4]
[365823002,1749939044492,-460.0,0.00022739,4]
[365823003,1749939044505,-460.0,0.00022739,4]
[365823004,1749939044514,-403.78525752,0.00022739,4]
[365823005,1749939044523,-330.0,0.00022739,4]
[365823006,1749939044533,-460.0,0.00022739,4]
[365823007,1749939044542,-460.0,0.00022739,4]
[365823008,1749939044551,-460.0,0.00022739,4]
[365823009,1749939044560,-460.0,0.00022739,4]
[365823010,1749939044570,-460.0,0.00022739,4]
[365823011,1749939044579,-460.0,0.00022739,4]
[365823012,1749939044588,-376.98738653,0.00022739,4]
[365823013,1749939044599,-460.0,0.00022739,4]
[365823014,1749939044609,-158.67900555,0.00022739,4]
[365823015,1749939044618,-460.0,0.00022739,4]
[365823016,1749939044627,-266.37957184,0.00022739,4]
[365823017,1749939044636,-1461.13,0.00022739,4]
[365823018,1749939044646,-460.0,0.00022739,4]
[365823019,1749939044655,-340.0,0.00022739,4]
[365823020,1749939044665,-460.0,0.00022739,4]
[365823021,1749939044675,-460.0,0.00022739,4]
[365823022,1749939044686,-340.0,0.00022739,4]
[365823023,1749939044695,-460.0,0.00022739,4]
[365823024,1749939044704,-655.98,0.00022739,4]
[365823025,1749939044713,-460.0,0.00022739,4]
[365823026,1749939044722,-460.0,0.00022739,4]
[365823027,1749939044731,-280.0,0.00022739,4]
[365823028,1749939044741,-290.0,0.00022739,4]
[365823029,1749939044750,-460.0,0.00022739,4]
[365823030,1749939044759,-460.0,0.00022739,4]
[365823031,1749939044769,-460.0,0.00022739,4]
[365823032,1749939044778,-350.0,0.00022739,4]
[365823033,1749939044787,-460.0,0.00022739,4]
[365823034,1749939044796,-370.0,0.00022739,4]
[365823035,1749939044806,-240.0,0.00022739,4]
[365823036,1749939044815,-1596.72,0.00022739,4]
[365823037,1749939044824,-460.0,0.00022739,4]
[365823038,1749939044833,-460.0,0.00022739,4]
[365823039,1749939044842,-578.05,0.00022739,4]
[365823040,1749939044852,-3609.07,0.00022739,4]
[365823041,1749939044861,-460.0,0.00022739,4]
[365823042,1749939044870,-460.0,0.00022739,4]
[365823043,1749939044879,-464.19,0.00022739,4]
[365823044,1749939044890,-222.02,0.00022739,4]
[365823045,1749939044900,-543.7,0.00022739,4]
[365823046,1749939044909,-427.65,0.00022739,4]
[365823047,1749939044919,-462.24,0.00022739,4]
[365823048,1749939044928,-1251.1,0.00022739,4]
[365823049,1749939044937,-290.0,0.00022739,4]
[365823050,1749939044946,-460.0,0.00022739,4]
[365823051,1749939044956,-460.0,0.00022739,4]
[365823052,1749939044965,-960.25,0.00022739,4]
[365823053,1749939044974,-320.0,0.00022739,4]
[365823054,1749939044983,-460.0,0.00022739,4]
[365823055,1749939044992,-460.0,0.00022739,4]
[365823056,1749939045001,-460.0,0.00022739,4]
[365823057,1749939045010,-460.0,0.00022739,4]
[365823058,1749939045019,-460.0,0.00022739,4]
[365823059,1749939045029,-544.09,0.00022739,4]
[365823060,1749939045038,-460.0,0.00022739,4]
[365823061,1749939045048,-460.0,0.00022739,4]
[365823062,1749939045057,-820.18,0.00022739,4]
[365823063,1749939045067,-1251.04,0.00022739,4]
[365823064,1749939045079,-460.0,0.00022739,4]
[365823065,1749939045088,-1083.91,0.00022739,4]
[365823066,1749939045098,-460.0,0.00022739,4]
[365823067,1749939045107,-632.58,0.00022739,4]
[365823068,1749939045116,-970.04,0.00022739,4]
[365823069,1749939045126,-460.0,0.00022739,4]
[365823070,1749939045135,-619.1,0.00022739,4]
[365823071,1749939045147,-649.91,0.00022739,4]
[365823072,1749939045157,-3762.74,0.00022739,4]
[365823073,1749939045166,-400.0,0.00022739,4]
[365823074,1749939045176,-633.71,0.00022739,4]